[Event "*** Titled Tuesday Blitz"]
[Site "Chess.com"]
[Date "2021.04.06"]
[Round "9"]
[White "TheCount"]
[Black "VinzentSpitzl"]
[Result "1-0"]
[WhiteElo "2611"]
[BlackElo "2427"]
[TimeControl "180+1"]
[EndTime "11:46:41 PDT"]
[Termination "TheCount won by resignation"]

1. d4 {[%clk 0:03:00]} 1... d5 {[%clk 0:02:59.5]} 2. c4 {[%clk 0:03:00.6]} 2...
e6 {[%clk 0:02:58]} 3. Nc3 {[%clk 0:03:00.1]} 3... Nf6 {[%clk 0:02:55.3]} 4. Bf4
{[%clk 0:03:00.7]} 4... Bb4 {[%clk 0:02:53.6]} 5. Qa4+ {[%clk 0:02:59.6]} 5...
Nc6 {[%clk 0:02:53.2]} 6. e3 {[%clk 0:03:00.3]} 6... O-O {[%clk 0:02:48.8]} 7.
Nf3 {[%clk 0:02:53.4]} 7... Re8 {[%clk 0:02:43.6]} 8. Qb3 {[%clk 0:02:37.8]}
8... Ne4 {[%clk 0:01:57.9]} 9. Bd3 {[%clk 0:00:56.3]} 9... Bd7 {[%clk
0:01:46.1]} 10. O-O {[%clk 0:00:55.2]} 10... dxc4 {[%clk 0:01:31]} 11. Qxc4
{[%clk 0:00:53.1]} 11... Nxc3 {[%clk 0:01:28.5]} 12. bxc3 {[%clk 0:00:53.1]}
12... Bd6 {[%clk 0:01:29]} 13. Qb3 {[%clk 0:00:40.2]} 13... Rb8 {[%clk
0:01:15.4]} 14. Bg5 {[%clk 0:00:38.1]} 14... Be7 {[%clk 0:01:11.6]} 15. Bf4
{[%clk 0:00:30.4]} 15... Bd6 {[%clk 0:01:11.5]} 16. Bg3 {[%clk 0:00:31.1]} 16...
e5 {[%clk 0:01:08.1]} 17. Qc2 {[%clk 0:00:30.1]} 17... h6 {[%clk 0:01:04.3]} 18.
d5 {[%clk 0:00:18.9]} 18... Ne7 {[%clk 0:00:56.5]} 19. c4 {[%clk 0:00:19.1]}
19... b6 {[%clk 0:00:37]} 20. Nxe5 {[%clk 0:00:18.6]} 20... Bxe5 {[%clk
0:00:33.9]} 21. Bxe5 {[%clk 0:00:19.5]} 21... Nxd5 {[%clk 0:00:34.2]} 22. Bh7+
{[%clk 0:00:12.9]} 22... Kh8 {[%clk 0:00:30.5]} 23. Bxg7+ {[%clk 0:00:13.8]}
23... Kxg7 {[%clk 0:00:30.2]} 24. cxd5 {[%clk 0:00:14.7]} 24... Qg5 {[%clk
0:00:20]} 25. Be4 {[%clk 0:00:13.2]} 25... Rg8 {[%clk 0:00:13.4]} 26. g3 {[%clk
0:00:11.5]} 26... Qe5 {[%clk 0:00:12.4]} 27. Bg2 {[%clk 0:00:10.5]} 27... f5
{[%clk 0:00:10.5]} 28. Rac1 {[%clk 0:00:11.2]} 28... Rbc8 {[%clk 0:00:09.9]} 29.
Rfd1 {[%clk 0:00:11.8]} 29... Bb5 {[%clk 0:00:06.4]} 30. Rd4 {[%clk 0:00:12.2]}
30... Kh8 {[%clk 0:00:05.5]} 31. Rf4 {[%clk 0:00:12.6]} 31... Rgf8 {[%clk
0:00:05.3]} 32. a4 {[%clk 0:00:13.1]} 32... Bd7 {[%clk 0:00:05.1]} 33. Rh4
{[%clk 0:00:13.3]} 33... Rf6 {[%clk 0:00:05.2]} 34. a5 {[%clk 0:00:10.6]} 34...
bxa5 {[%clk 0:00:04.9]} 35. Qc5 {[%clk 0:00:11.1]} 35... Qd6 {[%clk 0:00:04.5]}
36. Qxa5 {[%clk 0:00:10.7]} 36... Qb6 {[%clk 0:00:04.7]} 37. Qc3 {[%clk
0:00:10.3]} 37... Kh7 {[%clk 0:00:05]} 38. Rb4 {[%clk 0:00:10.2]} 38... Qd6
{[%clk 0:00:04.9]} 39. Rb7 {[%clk 0:00:10.8]} 39... a5 {[%clk 0:00:02.9]} 40.
Qxa5 {[%clk 0:00:10.8]} 40... Rf7 {[%clk 0:00:01.8]} 41. Rbxc7 {[%clk
0:00:10.7]} 41... Rxc7 {[%clk 0:00:02.2]} 42. Qxc7 {[%clk 0:00:11.5]} 42... Qf6
{[%clk 0:00:02.1]} 43. Qc3 {[%clk 0:00:11.1]} 43... Qd6 {[%clk 0:00:01.8]} 44.
h4 {[%clk 0:00:11.2]} 44... Qg6 {[%clk 0:00:02]} 45. Qd4 {[%clk 0:00:11.4]}
45... Qd6 {[%clk 0:00:02.5]} 46. Qf4 {[%clk 0:00:11.8]} 46... Qg6 {[%clk
0:00:02.9]} 47. Qe5 {[%clk 0:00:12.1]} 47... Re7 {[%clk 0:00:02.9]} 48. Qxe7+
{[%clk 0:00:12]} 1-0

[Event "*** Titled Tuesday Blitz"]
[Site "Chess.com"]
[Date "2021.04.06"]
[Round "9"]
[White "Ajedrez_con_German"]
[Black "Ze-Pequeno"]
[Result "1-0"]
[WhiteElo "2478"]
[BlackElo "2269"]
[TimeControl "180+1"]
[EndTime "11:46:41 PDT"]
[Termination "Ajedrez_con_German won on time"]

1. d4 {[%clk 0:03:00.9]} 1... Nf6 {[%clk 0:02:56.7]} 2. Bf4 {[%clk 0:02:57.1]}
2... c5 {[%clk 0:02:54]} 3. e3 {[%clk 0:02:52.1]} 3... Qb6 {[%clk 0:02:53.1]} 4.
b3 {[%clk 0:02:43.6]} 4... g6 {[%clk 0:02:52]} 5. Nf3 {[%clk 0:02:41.4]} 5...
Bg7 {[%clk 0:02:51.5]} 6. Be2 {[%clk 0:02:41.5]} 6... O-O {[%clk 0:02:50.9]} 7.
O-O {[%clk 0:02:41.3]} 7... d6 {[%clk 0:02:50.9]} 8. h3 {[%clk 0:02:36.3]} 8...
a6 {[%clk 0:02:48.9]} 9. Bh2 {[%clk 0:02:15.2]} 9... Nbd7 {[%clk 0:02:36.4]} 10.
c4 {[%clk 0:02:11.3]} 10... Qa5 {[%clk 0:02:07.9]} 11. Qd2 {[%clk 0:02:02.7]}
11... Qxd2 {[%clk 0:02:02.8]} 12. Nbxd2 {[%clk 0:02:00.9]} 12... b6 {[%clk
0:02:03.2]} 13. Bd3 {[%clk 0:01:46.5]} 13... Bb7 {[%clk 0:02:00.2]} 14. d5
{[%clk 0:01:44.3]} 14... b5 {[%clk 0:01:53.1]} 15. e4 {[%clk 0:01:41.8]} 15...
Ne8 {[%clk 0:01:38.8]} 16. Rab1 {[%clk 0:01:35.8]} 16... b4 {[%clk 0:01:36.4]}
17. Rfe1 {[%clk 0:01:34.1]} 17... f6 {[%clk 0:01:34]} 18. Nh4 {[%clk 0:01:12.3]}
18... a5 {[%clk 0:01:18.8]} 19. f4 {[%clk 0:01:10.9]} 19... a4 {[%clk
0:01:18.2]} 20. Nhf3 {[%clk 0:01:08.3]} 20... Nc7 {[%clk 0:01:04.4]} 21. e5
{[%clk 0:01:06.4]} 21... f5 {[%clk 0:01:03.8]} 22. exd6 {[%clk 0:00:52.8]} 22...
exd6 {[%clk 0:01:03]} 23. Re7 {[%clk 0:00:52.6]} 23... Rf7 {[%clk 0:00:59.2]}
24. Rbe1 {[%clk 0:00:45.8]} 24... Bf6 {[%clk 0:00:55.7]} 25. Rxf7 {[%clk
0:00:42.9]} 25... Kxf7 {[%clk 0:00:56]} 26. Ng5+ {[%clk 0:00:42.7]} 26... Bxg5
{[%clk 0:00:56]} 27. fxg5 {[%clk 0:00:42.7]} 27... Ne8 {[%clk 0:00:56.3]} 28. g4
{[%clk 0:00:34.1]} 28... fxg4 {[%clk 0:00:55.1]} 29. hxg4 {[%clk 0:00:34.1]}
29... axb3 {[%clk 0:00:54.8]} 30. axb3 {[%clk 0:00:33.7]} 30... Ra2 {[%clk
0:00:55.3]} 31. Ne4 {[%clk 0:00:33]} 31... Ra6 {[%clk 0:00:36.7]} 32. Rf1+
{[%clk 0:00:32.8]} 32... Kg7 {[%clk 0:00:35.7]} 33. Re1 {[%clk 0:00:32.2]} 33...
Kf7 {[%clk 0:00:35]} 34. Rf1+ {[%clk 0:00:24]} 34... Ke7 {[%clk 0:00:34.8]} 35.
Bf4 {[%clk 0:00:22.3]} 35... Ne5 {[%clk 0:00:26.6]} 36. Bxe5 {[%clk 0:00:21]}
36... dxe5 {[%clk 0:00:26.7]} 37. Nxc5 {[%clk 0:00:21.1]} 37... Ra7 {[%clk
0:00:27.1]} 38. Nxb7 {[%clk 0:00:17.2]} 38... Rxb7 {[%clk 0:00:26.9]} 39. c5
{[%clk 0:00:17.8]} 39... Ra7 {[%clk 0:00:18.7]} 40. Bc4 {[%clk 0:00:17.7]} 40...
Ra2 {[%clk 0:00:05.6]} 41. d6+ {[%clk 0:00:17.9]} 41... Nxd6 {[%clk 0:00:04.9]}
42. cxd6+ {[%clk 0:00:18.8]} 42... Kxd6 {[%clk 0:00:05.6]} 43. Rf7 {[%clk
0:00:16.8]} 43... e4 {[%clk 0:00:04.9]} 44. Rxh7 {[%clk 0:00:15.2]} 44... Ke5
{[%clk 0:00:05.8]} 45. Rg7 {[%clk 0:00:09.2]} 45... Kf4 {[%clk 0:00:06]} 46.
Rxg6 {[%clk 0:00:09.2]} 46... Ra1+ {[%clk 0:00:02.8]} 47. Kf2 {[%clk 0:00:08.7]}
47... e3+ {[%clk 0:00:01.7]} 48. Ke2 {[%clk 0:00:08.8]} 48... Ra2+ {[%clk
0:00:01.6]} 49. Ke1 {[%clk 0:00:09]} 49... Ra1+ {[%clk 0:00:01.4]} 50. Ke2
{[%clk 0:00:09.6]} 50... Ra2+ {[%clk 0:00:01.4]} 51. Kf1 {[%clk 0:00:10.1]}
51... Ra1+ {[%clk 0:00:01.4]} 52. Kg2 {[%clk 0:00:10.1]} 1-0

[Event "*** Titled Tuesday Blitz"]
[Site "Chess.com"]
[Date "2021.04.06"]
[Round "9"]
[White "shnitez"]
[Black "SilviusTiberius"]
[Result "0-1"]
[WhiteElo "2502"]
[BlackElo "2626"]
[TimeControl "180+1"]
[EndTime "11:46:47 PDT"]
[Termination "SilviusTiberius won on time"]

1. c4 {[%clk 0:03:00.9]} 1... e6 {[%clk 0:02:59.8]} 2. Nf3 {[%clk 0:03:00.7]}
2... d5 {[%clk 0:03:00.2]} 3. e3 {[%clk 0:03:00.1]} 3... Nf6 {[%clk 0:03:00.6]}
4. Nc3 {[%clk 0:02:58.7]} 4... b6 {[%clk 0:02:59.7]} 5. b3 {[%clk 0:02:57]} 5...
Bb7 {[%clk 0:03:00]} 6. Bb2 {[%clk 0:02:56.2]} 6... Nbd7 {[%clk 0:03:00.4]} 7.
g3 {[%clk 0:02:55.5]} 7... Bd6 {[%clk 0:02:41.4]} 8. Bg2 {[%clk 0:02:53.9]} 8...
a6 {[%clk 0:02:29.1]} 9. O-O {[%clk 0:02:51.2]} 9... Qe7 {[%clk 0:02:29.3]} 10.
d4 {[%clk 0:02:45.7]} 10... O-O {[%clk 0:02:20]} 11. Qe2 {[%clk 0:02:43.1]}
11... Rac8 {[%clk 0:02:10.6]} 12. Rfd1 {[%clk 0:02:37.3]} 12... Rfd8 {[%clk
0:02:03.6]} 13. a3 {[%clk 0:02:27.4]} 13... dxc4 {[%clk 0:01:49.4]} 14. bxc4
{[%clk 0:02:14.6]} 14... c5 {[%clk 0:01:45.7]} 15. d5 {[%clk 0:01:54.7]} 15...
exd5 {[%clk 0:01:43.8]} 16. Nxd5 {[%clk 0:01:54.9]} 16... Nxd5 {[%clk 0:01:43]}
17. cxd5 {[%clk 0:01:55.8]} 17... b5 {[%clk 0:01:41.1]} 18. e4 {[%clk
0:01:54.7]} 18... c4 {[%clk 0:01:39.2]} 19. Bc3 {[%clk 0:01:25.8]} 19... Bxa3
{[%clk 0:01:21.1]} 20. e5 {[%clk 0:01:19.9]} 20... b4 {[%clk 0:01:13.4]} 21. d6
{[%clk 0:01:19.7]} 21... Qe8 {[%clk 0:01:06.1]} 22. Bh3 {[%clk 0:00:58.9]} 22...
Bxf3 {[%clk 0:00:46]} 23. Qxf3 {[%clk 0:00:59.8]} 23... Nxe5 {[%clk 0:00:46.2]}
24. Bxe5 {[%clk 0:00:59.5]} 24... Qxe5 {[%clk 0:00:45.2]} 25. Bxc8 {[%clk
0:00:59.6]} 25... Rxc8 {[%clk 0:00:46.1]} 26. d7 {[%clk 0:00:49.8]} 26... Rd8
{[%clk 0:00:45.3]} 27. Rxa3 {[%clk 0:00:30.4]} 27... bxa3 {[%clk 0:00:43.5]} 28.
Qxa3 {[%clk 0:00:31.3]} 28... Qe2 {[%clk 0:00:34.4]} 29. Qc1 {[%clk 0:00:21.6]}
29... Qg4 {[%clk 0:00:31.7]} 30. Rd2 {[%clk 0:00:14.2]} 30... Rxd7 {[%clk
0:00:24.6]} 31. Rxd7 {[%clk 0:00:14.1]} 31... Qxd7 {[%clk 0:00:25.1]} 32. Qxc4
{[%clk 0:00:14.7]} 32... Qe6 {[%clk 0:00:21.6]} 33. Qc7 {[%clk 0:00:13.5]} 33...
g6 {[%clk 0:00:20.8]} 34. h4 {[%clk 0:00:13.7]} 34... h5 {[%clk 0:00:20]} 35.
Kf1 {[%clk 0:00:12.2]} 35... Qa2 {[%clk 0:00:19.4]} 36. Kg2 {[%clk 0:00:10.6]}
36... a5 {[%clk 0:00:19.7]} 37. g4 {[%clk 0:00:09.7]} 37... hxg4 {[%clk
0:00:19.5]} 38. Qc8+ {[%clk 0:00:09.3]} 38... Kg7 {[%clk 0:00:18.5]} 39. Qxg4
{[%clk 0:00:10.2]} 39... Qd5+ {[%clk 0:00:18]} 40. Kg1 {[%clk 0:00:09.8]} 40...
Qb5 {[%clk 0:00:16]} 41. Qd4+ {[%clk 0:00:09.3]} 41... Kg8 {[%clk 0:00:16]} 42.
Qd8+ {[%clk 0:00:08.5]} 42... Kh7 {[%clk 0:00:16]} 43. Qf6 {[%clk 0:00:07]}
43... Qc4 {[%clk 0:00:13.3]} 44. h5 {[%clk 0:00:05.1]} 44... Qg4+ {[%clk
0:00:10.3]} 45. Kf1 {[%clk 0:00:04.7]} 45... Qd1+ {[%clk 0:00:09.6]} 46. Kg2
{[%clk 0:00:04.7]} 46... Qd5+ {[%clk 0:00:10.1]} 47. Kg1 {[%clk 0:00:03.2]}
47... gxh5 {[%clk 0:00:10.7]} 48. f3 {[%clk 0:00:01.6]} 48... a4 {[%clk
0:00:10.4]} 49. Kg2 {[%clk 0:00:01.5]} 49... a3 {[%clk 0:00:10.1]} 50. Qf4
{[%clk 0:00:01.8]} 50... a2 {[%clk 0:00:09.3]} 51. Qf6 {[%clk 0:00:02]} 51...
Qd2+ {[%clk 0:00:06.2]} 52. Kg3 {[%clk 0:00:02.3]} 52... Qd5 {[%clk 0:00:05.2]}
53. f4 {[%clk 0:00:02.5]} 53... Qe6 {[%clk 0:00:05.5]} 54. Qc3 {[%clk
0:00:01.4]} 54... Qg6+ {[%clk 0:00:05.6]} 55. Kh3 {[%clk 0:00:01.6]} 55... Qb1
{[%clk 0:00:06.1]} 56. Kh4 {[%clk 0:00:01.8]} 56... a1=Q {[%clk 0:00:06.1]} 57.
Qe5 {[%clk 0:00:01.2]} 57... Qh1+ {[%clk 0:00:05.2]} 0-1

[Event "*** Titled Tuesday Blitz"]
[Site "Chess.com"]
[Date "2021.04.06"]
[Round "9"]
[White "HouseOfDurin"]
[Black "TC2304"]
[Result "0-1"]
[WhiteElo "2152"]
[BlackElo "2278"]
[TimeControl "180+1"]
[EndTime "11:46:47 PDT"]
[Termination "TC2304 won on time"]

1. d4 {[%clk 0:03:00.9]} 1... d5 {[%clk 0:02:58.8]} 2. Bg5 {[%clk 0:03:01.2]}
2... Nf6 {[%clk 0:02:51.7]} 3. Bxf6 {[%clk 0:03:00.9]} 3... exf6 {[%clk
0:02:49.4]} 4. e3 {[%clk 0:03:01.8]} 4... Bd6 {[%clk 0:02:49.1]} 5. c4 {[%clk
0:03:01.4]} 5... dxc4 {[%clk 0:02:44.2]} 6. Bxc4 {[%clk 0:03:02.3]} 6... O-O
{[%clk 0:02:43]} 7. Nc3 {[%clk 0:03:02.7]} 7... f5 {[%clk 0:02:37.8]} 8. Bd5
{[%clk 0:03:00.8]} 8... c6 {[%clk 0:02:32.7]} 9. Bf3 {[%clk 0:03:00]} 9... Nd7
{[%clk 0:02:30.1]} 10. Nge2 {[%clk 0:02:59.1]} 10... Nf6 {[%clk 0:02:30]} 11.
O-O {[%clk 0:02:57.9]} 11... Re8 {[%clk 0:02:24.1]} 12. g3 {[%clk 0:02:57.1]}
12... Ne4 {[%clk 0:02:23.6]} 13. Qc2 {[%clk 0:02:49.5]} 13... Qe7 {[%clk
0:02:17.1]} 14. a3 {[%clk 0:02:39.6]} 14... a5 {[%clk 0:02:16.7]} 15. Rfd1
{[%clk 0:02:35.6]} 15... Bd7 {[%clk 0:02:00.9]} 16. Nc1 {[%clk 0:02:22.5]} 16...
g6 {[%clk 0:01:54.1]} 17. Nd3 {[%clk 0:02:21.5]} 17... h5 {[%clk 0:01:52.4]} 18.
h4 {[%clk 0:02:20.1]} 18... b5 {[%clk 0:01:45]} 19. Ne2 {[%clk 0:01:45.3]} 19...
Rac8 {[%clk 0:01:30.9]} 20. Rac1 {[%clk 0:01:34.9]} 20... Be6 {[%clk 0:01:20.3]}
21. Nc5 {[%clk 0:01:26.5]} 21... Bxc5 {[%clk 0:01:10.4]} 22. dxc5 {[%clk
0:01:27.4]} 22... a4 {[%clk 0:01:10.7]} 23. Nd4 {[%clk 0:00:48.4]} 23... Bd5
{[%clk 0:01:03.9]} 24. Qe2 {[%clk 0:00:42.7]} 24... Kh7 {[%clk 0:00:40.6]} 25.
Bxe4 {[%clk 0:00:40.8]} 25... Bxe4 {[%clk 0:00:35.8]} 26. f3 {[%clk 0:00:40.2]}
26... Bd5 {[%clk 0:00:34.1]} 27. Kf2 {[%clk 0:00:40.2]} 27... Qe5 {[%clk
0:00:32.8]} 28. Rg1 {[%clk 0:00:33.3]} 28... Re7 {[%clk 0:00:31.8]} 29. Rce1
{[%clk 0:00:30.9]} 29... Rce8 {[%clk 0:00:31.1]} 30. Qd3 {[%clk 0:00:23.7]}
30... Bc4 {[%clk 0:00:29.6]} 31. Qd2 {[%clk 0:00:22.6]} 31... Qf6 {[%clk
0:00:29.4]} 32. Qc3 {[%clk 0:00:17.5]} 32... Bd5 {[%clk 0:00:28.8]} 33. Nxb5
{[%clk 0:00:16.7]} 33... Qxc3 {[%clk 0:00:25.4]} 34. Nxc3 {[%clk 0:00:17.6]}
34... Rb8 {[%clk 0:00:24.6]} 35. Re2 {[%clk 0:00:17.5]} 35... Reb7 {[%clk
0:00:20]} 36. Nxa4 {[%clk 0:00:17.5]} 36... Rb5 {[%clk 0:00:16.9]} 37. Rc1
{[%clk 0:00:15.2]} 37... Bb3 {[%clk 0:00:15.8]} 38. Nb6 {[%clk 0:00:14.4]} 38...
Rd8 {[%clk 0:00:14.6]} 39. Rc3 {[%clk 0:00:07.9]} 39... Rd1 {[%clk 0:00:13.4]}
40. e4 {[%clk 0:00:07.2]} 40... fxe4 {[%clk 0:00:12.8]} 41. fxe4 {[%clk
0:00:06.7]} 41... Be6 {[%clk 0:00:13]} 42. Ke3 {[%clk 0:00:06.6]} 42... Bg4
{[%clk 0:00:12.6]} 43. Rd2 {[%clk 0:00:05.5]} 43... Rxd2 {[%clk 0:00:12.4]} 44.
Kxd2 {[%clk 0:00:06.4]} 44... Rxb2+ {[%clk 0:00:13]} 45. Rc2 {[%clk 0:00:07]}
45... Rb3 {[%clk 0:00:13.1]} 46. Rc3 {[%clk 0:00:07.2]} 46... Rb2+ {[%clk
0:00:12.7]} 47. Ke3 {[%clk 0:00:07.8]} 47... Rg2 {[%clk 0:00:12.2]} 48. Kf4
{[%clk 0:00:07]} 48... f6 {[%clk 0:00:12.3]} 49. e5 {[%clk 0:00:06.1]} 49...
Rf2+ {[%clk 0:00:12.4]} 50. Ke4 {[%clk 0:00:06.6]} 50... fxe5 {[%clk 0:00:11.2]}
51. Kxe5 {[%clk 0:00:04.9]} 51... Rf6 {[%clk 0:00:11.5]} 52. Nc4 {[%clk
0:00:03.6]} 52... Rf5+ {[%clk 0:00:11.5]} 53. Kd6 {[%clk 0:00:02.2]} 53... Bf3
{[%clk 0:00:11.6]} 54. Nb6 {[%clk 0:00:01.1]} 54... Rf6+ {[%clk 0:00:11.9]} 0-1

[Event "*** Titled Tuesday Blitz"]
[Site "Chess.com"]
[Date "2021.04.06"]
[Round "9"]
[White "gxbg2000"]
[Black "pfalcon1949"]
[Result "1-0"]
[WhiteElo "2011"]
[BlackElo "1985"]
[TimeControl "180+1"]
[EndTime "11:46:48 PDT"]
[Termination "gxbg2000 won on time"]

1. e4 {[%clk 0:03:00.9]} 1... c5 {[%clk 0:02:57.4]} 2. f4 {[%clk 0:02:59.4]}
2... d5 {[%clk 0:02:52.7]} 3. exd5 {[%clk 0:02:58.3]} 3... Nf6 {[%clk
0:02:52.7]} 4. c4 {[%clk 0:02:56.5]} 4... e6 {[%clk 0:02:52.5]} 5. dxe6 {[%clk
0:02:54]} 5... Bxe6 {[%clk 0:02:52.5]} 6. Nf3 {[%clk 0:02:54.4]} 6... Nc6 {[%clk
0:02:52.6]} 7. Nc3 {[%clk 0:02:54.4]} 7... Bd6 {[%clk 0:02:52.6]} 8. d3 {[%clk
0:02:54.5]} 8... O-O {[%clk 0:02:48.5]} 9. Be2 {[%clk 0:02:54.6]} 9... Re8
{[%clk 0:02:48.5]} 10. O-O {[%clk 0:02:53.4]} 10... Qc7 {[%clk 0:02:48.4]} 11.
Ng5 {[%clk 0:02:49.4]} 11... a6 {[%clk 0:02:47]} 12. Nge4 {[%clk 0:02:49]} 12...
Be7 {[%clk 0:02:43.6]} 13. Be3 {[%clk 0:02:39.6]} 13... b6 {[%clk 0:02:40.7]}
14. h3 {[%clk 0:02:28.5]} 14... Rad8 {[%clk 0:02:31.7]} 15. Qc2 {[%clk 0:02:27]}
15... Nb4 {[%clk 0:02:19.5]} 16. Qb1 {[%clk 0:02:19.7]} 16... Nc6 {[%clk
0:02:06.7]} 17. a3 {[%clk 0:02:17.5]} 17... Nd4 {[%clk 0:02:04.2]} 18. Bd1
{[%clk 0:02:03.5]} 18... b5 {[%clk 0:01:55.2]} 19. b3 {[%clk 0:02:00.7]} 19...
bxc4 {[%clk 0:01:40.3]} 20. bxc4 {[%clk 0:01:59.2]} 20... Rb8 {[%clk 0:01:39.6]}
21. Qa2 {[%clk 0:01:58.4]} 21... Rb7 {[%clk 0:01:23.6]} 22. Bxd4 {[%clk
0:01:49.1]} 22... cxd4 {[%clk 0:01:22.3]} 23. Ne2 {[%clk 0:01:48.6]} 23... Nxe4
{[%clk 0:01:15.4]} 24. dxe4 {[%clk 0:01:47.6]} 24... Bxc4 {[%clk 0:01:14.6]} 25.
Qd2 {[%clk 0:01:44.6]} 25... d3 {[%clk 0:01:14.1]} 26. Ng3 {[%clk 0:01:35.8]}
26... Qb6+ {[%clk 0:01:06.8]} 27. Kh1 {[%clk 0:01:31.5]} 27... Qb2 {[%clk
0:01:06.7]} 28. Qxb2 {[%clk 0:01:23.1]} 28... Rxb2 {[%clk 0:01:07.6]} 29. Rc1
{[%clk 0:01:22.6]} 29... Be6 {[%clk 0:00:40.6]} 30. f5 {[%clk 0:01:19]} 30...
Bd7 {[%clk 0:00:37.1]} 31. a4 {[%clk 0:01:10.6]} 31... Bd6 {[%clk 0:00:30.7]}
32. Nh5 {[%clk 0:01:02.6]} 32... f6 {[%clk 0:00:25.8]} 33. Bf3 {[%clk
0:00:49.9]} 33... d2 {[%clk 0:00:24.2]} 34. Rcd1 {[%clk 0:00:49.4]} 34... Bxa4
{[%clk 0:00:21.8]} 35. Ra1 {[%clk 0:00:44]} 35... Bb5 {[%clk 0:00:21.9]} 36.
Rfd1 {[%clk 0:00:42.9]} 36... Rc8 {[%clk 0:00:20.9]} 37. g3 {[%clk 0:00:39.4]}
37... h6 {[%clk 0:00:16.5]} 38. Nf4 {[%clk 0:00:38.5]} 38... Bxf4 {[%clk
0:00:14.1]} 39. gxf4 {[%clk 0:00:38.1]} 39... Bd3 {[%clk 0:00:12.1]} 40. Kg2
{[%clk 0:00:37.5]} 40... Rcc2 {[%clk 0:00:09.9]} 41. Kf2 {[%clk 0:00:36.3]}
41... Rb4 {[%clk 0:00:05]} 42. Ke3 {[%clk 0:00:35.9]} 42... Bb5 {[%clk 0:00:04]}
43. Rxd2 {[%clk 0:00:35.7]} 43... Rxd2 {[%clk 0:00:03.6]} 44. Kxd2 {[%clk
0:00:35.5]} 44... Rb2+ {[%clk 0:00:04.3]} 45. Ke3 {[%clk 0:00:35.3]} 45... Rb3+
{[%clk 0:00:04.7]} 46. Kf2 {[%clk 0:00:34.2]} 46... Rb2+ {[%clk 0:00:05.2]} 47.
Kg3 {[%clk 0:00:32.7]} 47... Rb3 {[%clk 0:00:05.7]} 48. Kg2 {[%clk 0:00:32.2]}
48... Rb2+ {[%clk 0:00:05.8]} 49. Kg3 {[%clk 0:00:31.7]} 49... Rb3 {[%clk
0:00:06]} 50. Kg4 {[%clk 0:00:32.1]} 50... Bc4 {[%clk 0:00:04.9]} 51. e5 {[%clk
0:00:28.8]} 51... fxe5 {[%clk 0:00:03.2]} 52. fxe5 {[%clk 0:00:28.9]} 52... Re3
{[%clk 0:00:03.8]} 53. Kf4 {[%clk 0:00:28.5]} 53... Rb3 {[%clk 0:00:02.3]} 54.
Rc1 {[%clk 0:00:27.5]} 54... Rb4 {[%clk 0:00:02.4]} 55. e6 {[%clk 0:00:23.2]}
55... Bxe6+ {[%clk 0:00:02.3]} 56. Ke5 {[%clk 0:00:20.5]} 56... Bf7 {[%clk
0:00:02.7]} 57. Be4 {[%clk 0:00:19.2]} 57... Rb5+ {[%clk 0:00:03.1]} 58. Kf4
{[%clk 0:00:18.2]} 58... Rb4 {[%clk 0:00:03.2]} 59. Rc8+ {[%clk 0:00:17.3]}
59... Kh7 {[%clk 0:00:02.1]} 60. f6+ {[%clk 0:00:17.8]} 60... Bg6 {[%clk
0:00:01.4]} 61. fxg7 {[%clk 0:00:17.1]} 1-0